bitfinex-derivatives/quotes_SOLF0:USTF0_20241011
["timestamp","ask_amount","ask_price","bid_price","bid_amount"]
[1728641756872,7.63332,142.61,142.57,19.5792]
[1728641757361,7.63332,142.61,142.58,3.509]
[1728641757572,7.63332,142.61,142.57,16.07]
[1728641757759,7.63332,142.61,142.59,10.79]
[1728641758461,4.12502,142.61,142.59,10.79]
[1728641759859,4.12502,142.61,142.59,14.2988]
[1728641760869,4.12502,142.61,142.59,10.79]
[1728641761568,3.5085,142.6,142.57,3.5092]
[1728641761869,10.79,142.6,142.56,10.79]
[1728641762066,10.78,142.6,142.56,10.78]
[1728641762268,10.78,142.6,142.57,10.78]
[1728641762769,14.2886,142.6,142.57,14.2891]
[1728641762972,4.12502,142.61,142.57,10.78]
[1728641763269,7.63352,142.61,142.58,3.5089]
[1728641766167,3.5086,142.6,142.57,3.5092]
[1728641768168,4.12502,142.61,142.56,10.78]
[1728641768376,7.63342,142.61,142.58,3.5089]
[1728641770374,4.12502,142.61,142.55,5.28]
[1728641770572,4.12502,142.61,142.57,10.78]
[1728641770879,4.12502,142.61,142.6,10.78]
[1728641771264,4.12502,142.61,142.6,14.2885]
[1728641776776,4.12502,142.61,142.6,14.2785]
[1728641781082,4.12502,142.61,142.59,14.2787]
[1728641784998,4.12502,142.61,142.59,3.5087]
[1728641785399,4.12502,142.61,142.59,14.2787]
[1728641785596,4.12502,142.61,142.59,10.77]
[1728641785796,4.12502,142.61,142.59,3.5087]
[1728641786098,4.12502,142.61,142.59,14.2787]
[1728641786297,4.12502,142.61,142.59,10.77]
[1728641786498,4.12502,142.61,142.58,5.32]
[1728641786698,4.12502,142.61,142.58,16.09]
[1728641786996,4.12502,142.61,142.6,10.77]
[1728641787491,4.12502,142.61,142.6,14.2785]
[1728641794205,3.63192,142.67,142.63,3.5076]
[1728641794405,3.63192,142.67,142.66,10.77]
[1728641795204,0.12502,142.67,142.66,10.77]
[1728641795602,0.12502,142.67,142.66,14.2771]
[1728641795803,0.12502,142.67,142.66,10.77]
[1728641796209,0.12502,142.67,142.66,14.2771]
[1728641803816,3.63202,142.67,142.64,8.8274]
[1728641804118,3.63202,142.67,142.64,19.5974]
[1728641808613,3.63202,142.67,142.64,8.8274]
[1728641809411,3.5072,142.66,142.64,5.32]
[1728641809617,0.12502,142.67,142.64,5.32]
[1728641810020,3.63202,142.67,142.64,8.8275]
[1728641810323,0.12502,142.67,142.64,5.32]
[1728641810918,3.5071,142.66,142.64,8.8275]
[1728641812125,10.89502,142.67,142.63,3.5077]
[1728641812315,12.25162,142.67,142.63,3.5077]
[1728641812820,3.5072,142.66,142.63,3.5077]
[1728641817318,3.5078,142.63,142.59,5.32]
[1728641817525,12.0729,142.66,142.6,10.77]
[1728641818025,3.5076,142.64,142.61,3.5082]
[1728641818317,1.3029,142.66,142.61,10.77]
[1728641818722,3.5074,142.65,142.62,3.508]
[1728641819618,0.12502,142.67,142.62,16.09]
[1728641819824,14.40202,142.67,142.63,3.5077]
[1728641820124,10.89502,142.67,142.63,3.5077]
[1728641820324,3.5071,142.66,142.63,3.5077]
[1728641821827,14.40192,142.67,142.65,3.5073]
[1728641822031,10.89502,142.67,142.65,3.5073]
[1728641822631,14.40182,142.67,142.65,3.5073]
[1728641823620,14.40182,142.67,142.64,3.5075]
[1728641840634,3.63182,142.67,142.64,3.5075]
[1728641843740,0.12502,142.67,142.65,3.5072]
[1728641844238,14.40192,142.67,142.64,3.5075]
[1728641851945,3.63192,142.67,142.64,3.5075]
[1728641852143,14.40192,142.67,142.64,3.5075]
[1728641853550,3.63192,142.67,142.64,3.5075]
[1728641856644,14.40192,142.67,142.64,3.5075]
[1728641856951,14.40192,142.67,142.65,11.23028823]
[1728641857247,14.40192,142.67,142.64,3.5075]
[1728641857645,10.77,142.66,142.62,5.32]
[1728641857846,10.77,142.66,142.63,11.23505216]
[1728641858145,14.2775,142.65,142.62,8.8279]
[1728641858342,14.2775,142.65,142.63,11.23893128]
[1728641858541,14.2775,142.65,142.62,8.8279]
[1728641858750,14.2775,142.65,142.63,11.23938595]
[1728641858951,14.2775,142.65,142.62,8.8279]
[1728641859144,14.2775,142.65,142.63,11.23996681]
[1728641859343,14.2775,142.65,142.62,8.8279]
[1728641859542,14.2775,142.65,142.63,11.24178614]
[1728641859743,10.77,142.66,142.62,5.32]
[1728641859942,14.2772,142.66,142.63,9.58302864]
[1728641860138,14.2772,142.66,142.64,11.24169101]
[1728641860343,14.2772,142.66,142.63,3.5077]
[1728641860539,14.2772,142.66,142.64,11.24260603]
[1728641860738,14.2772,142.66,142.63,3.5077]
[1728641860943,14.2772,142.66,142.64,14.75010466]
[1728641861141,14.2772,142.66,142.64,3.5075]
[1728641861351,0.12502,142.67,142.62,16.09]
[1728641861546,0.12502,142.67,142.66,3.5071]
[1728641862548,0.12502,142.67,142.65,3.5072]
[1728641863749,0.12502,142.67,142.64,10.77]
[1728641863953,0.12502,142.67,142.66,3.5071]
[1728641870656,0.12502,142.67,142.66,14.2771]
[1728641874857,0.12502,142.67,142.66,3.5071]
[1728641881864,0.12502,142.67,142.66,14.2771]
[1728641883966,0.12502,142.67,142.66,3.5071]
[1728641884164,0.12502,142.67,142.66,14.2771]
[1728641894367,0.12502,142.67,142.66,25.50617657]
[1728641894584,0.12502,142.67,142.66,9.5757582]
[1728641894872,0.12502,142.67,142.66,6.06803813]
[1728641895074,14.40182,142.67,142.66,11.22801876]
[1728641895263,14.40182,142.67,142.66,6.06803813]
[1728641895462,14.40182,142.67,142.66,1.78063813]
[1728641896268,14.40182,142.67,142.63,3.5077]
[1728641896577,3.5071,142.66,142.63,3.5077]
[1728641896961,10.89502,142.67,142.64,3.5075]
[1728641897167,14.40192,142.67,142.64,3.5075]
[1728641897367,3.63192,142.67,142.64,3.5075]
[1728641897572,14.40192,142.67,142.64,3.5075]
[1728641897765,10.89502,142.67,142.64,3.5075]
[1728641897965,3.5071,142.66,142.64,3.5075]
[1728641898668,14.40202,142.67,142.64,3.5075]
[1728641899070,3.63202,142.67,142.64,3.5075]
[1728641899267,14.40202,142.67,142.64,3.5075]
[1728641899674,0.12502,142.67,142.63,10.77]
[1728641899876,0.12502,142.67,142.65,3.5071]
[1728641901074,0.12502,142.67,142.62,5.12]
[1728641901075,10.89502,142.67,142.64,3.5075]
[1728641901373,0.12502,142.67,142.66,10.77]
[1728641901572,0.12502,142.67,142.66,14.2771]
[1728641902076,0.12502,142.67,142.66,17.77751548]
[1728641902280,0.12502,142.67,142.66,14.2771]
[1728641902578,0.12502,142.67,142.66,17.74840089]
[1728641903379,0.12502,142.67,142.66,14.2771]
[1728641904185,0.12502,142.67,142.65,3.5072]
[1728641904370,0.12502,142.67,142.64,5.08]
[1728641904371,10.89502,142.67,142.64,5.08]
[1728641905078,1.54572,142.67,142.64,5.08]
[1728641905376,1.54572,142.67,142.65,5.16008447]
[1728641905581,1.54572,142.67,142.66,3.5071]
[1728641906187,1.54572,142.67,142.64,5.08]
[1728641906481,1.54572,142.67,142.66,3.5071]
[1728641907484,1.54572,142.67,142.66,8.6673299]
[1728641908175,1.54572,142.67,142.66,8.66762944]
[1728641908383,1.54572,142.67,142.66,3.5071]
[1728641908578,1.54572,142.67,142.66,8.66745049]
[1728641909087,12.31572,142.67,142.66,5.16035049]
[1728641909386,12.31572,142.67,142.66,8.66745049]
[1728641909687,12.31572,142.67,142.66,14.68308672]
[1728641910292,12.31572,142.67,142.66,8.66745049]
[1728641910482,12.31572,142.67,142.66,5.16035049]
[1728641911087,12.31572,142.67,142.65,3.5073]
[1728641911487,12.31572,142.67,142.66,5.16214795]
[1728641912087,12.31572,142.67,142.59,10.77]
[1728641912382,10.77,142.62,142.6,6.01802719]
[1728641912585,10.77,142.62,142.61,6.01802719]
[1728641912781,10.77,142.62,142.61,9.52632719]
[1728641912985,10.77,142.62,142.61,6.01802719]
[1728641914884,3.5079,142.63,142.61,6.01802719]
[1728641915090,10.77,142.62,142.6,3.5083]
[1728641915390,10.77,142.62,142.61,6.01935292]
[1728641915587,12.0597,142.62,142.61,6.01935292]
[1728641916791,1.2897,142.62,142.61,6.01935292]
[1728641917294,12.0597,142.62,142.61,6.01935292]
[1728641917481,12.0597,142.62,142.61,9.52765292]
[1728641918592,12.0597,142.62,142.61,6.01935292]
[1728641919894,15.5677,142.62,142.61,6.01935292]
[1728641920692,20.6477,142.62,142.61,6.01935292]
[1728641920896,3.5086,142.6,142.52,2.6321]
[1728641921091,10.77,142.57,142.53,15.85]
[1728641921286,5.08,142.59,142.57,3.5092]
[1728641921489,10.77,142.58,142.53,5.08]
[1728641922093,10.77,142.56,142.52,33.34871042]
[1728641922294,19.37876574,142.56,142.52,33.34871042]
[1728641922495,10.77,142.53,142.52,18.05466309]
[1728641922798,15.85,142.53,142.49,10.89502]
[1728641922999,3.53586812,142.53,142.49,0.12502]
[1728641923192,3.53586812,142.53,142.51,3.5105]
[1728641923391,3.53586812,142.53,142.49,10.89502]
[1728641924101,14.28,142.54,142.49,10.89502]
[1728641924301,19.36,142.54,142.49,10.89502]
[1728641925494,15.85,142.54,142.49,10.89502]
[1728641925901,5.08,142.54,142.5,10.77]
[1728641926200,10.77,142.55,142.5,10.77]
[1728641926400,5.08,142.54,142.5,10.77]
[1728641927196,4.89459105,142.57,142.49,0.12502]
[1728641927403,1.3966,142.57,142.55,10.77]
[1728641928296,1.4067,142.6,142.56,10.77]
[1728641928503,6.4389,142.63,142.58,10.77]
[1728641928702,5.08,142.62,142.58,10.77]
[1728641928901,5.08,142.62,142.6,3.5085]
[1728641929201,10.89502,142.61,142.54,88.50695881]
[1728641929405,10.77,142.59,142.54,99.27695881]
[1728641929603,15.85,142.59,142.54,99.27695881]
[1728641929990,3.5091,142.58,142.55,3.5097]
[1728641930297,0.12502,142.61,142.55,10.77]
[1728641930596,5.28,142.6,142.55,10.77]
[1728641931103,5.28,142.6,142.57,3.5091]
[1728641931503,5.28,142.6,142.58,10.77]
[1728641931800,5.28,142.6,142.59,3.5088]
[1728641932305,16.17502,142.61,142.59,3.5088]
[1728641932509,0.12502,142.61,142.59,3.5086]
[1728641933295,0.12502,142.61,142.58,10.77]
[1728641933498,0.12502,142.61,142.6,3.5085]
[1728641935706,0.12502,142.61,142.57,10.77]
[1728641935905,14.40332,142.61,142.58,3.5089]
[1728641936203,0.12502,142.61,142.58,3.5089]
[1728641936408,0.12502,142.61,142.57,10.77]
[1728641937002,0.12502,142.61,142.58,3.5089]
[1728641937901,3.63332,142.61,142.58,3.5089]
[1728641940311,0.12502,142.61,142.57,10.77]
[1728641941310,0.12502,142.61,142.58,3.5089]
[1728641941607,14.40352,142.61,142.58,3.5089]
[1728641941812,10.77,142.59,142.56,3.5094]
[1728641942204,10.77,142.59,142.54,99.27695881]
[1728641942507,3.5091,142.58,142.55,3.5098]
[1728641943513,3.5091,142.58,142.54,88.50695881]
[1728641943514,14.2789,142.59,142.56,3.5095]
[1728641945613,10.77,142.59,142.54,10.77]
[1728641945820,10.77,142.59,142.56,3.5094]
[1728641946524,10.77,142.59,142.54,10.77]
[1728641946824,14.2788,142.59,142.54,10.77]
[1728641947418,14.2788,142.59,142.56,3.5094]
[1728641947814,10.77,142.59,142.54,10.77]
[1728641948019,10.77,142.56,142.53,1.3792]
[1728641948222,10.77,142.56,142.51,10.77]
[1728641948522,10.77,142.54,142.5,10.77]
[1728641949024,10.77,142.54,142.52,3.5103]
[1728641949417,10.77,142.54,142.5,10.77]
[1728641950422,10.77,142.54,142.51,3.5107]
[1728641950623,10.77,142.54,142.5,10.77]
[1728641951327,10.77,142.55,142.51,10.77]
[1728641951625,10.77,142.55,142.53,3.5103]
[1728641952320,10.77,142.54,142.5,3.5109]
[1728641952524,10.77,142.54,142.49,39.53092979]
[1728641952822,10.77,142.53,142.49,33.89092979]
[1728641953022,10.77,142.53,142.51,3.5106]
[1728641953824,10.77,142.53,142.49,33.89092979]
[1728641954325,10.77,142.53,142.49,44.66092979]
[1728641954525,10.77,142.53,142.52,3.5105]
[1728641954718,3.5093,142.57,142.5,10.77]
[1728641954924,10.77,142.55,142.5,10.77]
[1728641955318,10.77,142.55,142.53,3.5101]
[1728641958329,5.64,142.56,142.54,3.5099]
[1728641958527,10.77,142.55,142.54,3.5099]
[1728641960825,1.3769,142.58,142.53,10.77]
[1728641961024,17.7869,142.58,142.53,10.77]
[1728641961426,12.1469,142.58,142.53,10.77]
[1728641961729,10.77,142.57,142.56,3.5093]
[1728641962326,10.77,142.57,142.53,10.77]
[1728641962532,10.77,142.56,142.52,10.77]
[1728641962727,1.3769,142.58,142.55,10.77]
[1728641963427,1.3769,142.58,142.57,3.5093]
[1728641967927,12.1469,142.58,142.57,3.5093]
[1728641969434,5.64,142.59,142.58,3.509]
[1728641972033,5.64,142.59,142.57,3.5092]
[1728641973233,14.279,142.58,142.55,3.5095]
[1728641973434,10.77,142.56,142.55,3.5095]
[1728641974542,5.64,142.59,142.58,3.509]
[1728641974743,5.64,142.59,142.54,10.77]
[1728641974940,16.41,142.59,142.54,10.77]
[1728641975138,16.41,142.59,142.55,3.5096]
[1728641975338,16.41,142.59,142.54,10.77]
[1728641975841,10.77,142.59,142.54,10.77]
[1728641976444,10.77,142.59,142.57,3.5091]
[1728641978156,14.2788,142.59,142.57,3.5091]
[1728641978447,10.77,142.58,142.55,3.5097]
[1728641978940,14.2792,142.58,142.55,3.5097]
[1728641979137,10.77,142.56,142.52,3.5103]
[1728641979340,10.77,142.55,142.51,16.41]
[1728641979645,10.77,142.55,142.53,3.5101]
[1728641979842,10.77,142.54,142.49,1.44242]
[1728641980045,10.77,142.54,142.49,12.21242]
[1728641980346,14.2802,142.54,142.51,3.5107]
[1728641980547,10.77,142.52,142.49,1.44242]
[1728641980741,10.77,142.51,142.49,1.44242]
[1728641980947,10.77,142.51,142.49,0.12502]
[1728641981443,10.77,142.5,142.49,0.12502]
[1728641981648,10.77,142.51,142.49,0.12502]
[1728641983242,10.77,142.51,142.49,3.63612]
[1728641984249,10.77,142.51,142.5,3.511]
[1728641984449,3.5101,142.54,142.49,0.12502]
[1728641984650,10.77,142.52,142.49,0.12502]
[1728641984948,10.77,142.52,142.5,3.511]
[1728641985749,10.77,142.52,142.49,0.12502]
[1728641985950,10.77,142.52,142.51,3.5108]
[1728641986753,10.77,142.53,142.52,3.5105]
[1728641987249,10.77,142.54,142.52,3.5105]
[1728641989951,3.5106,142.52,142.49,3.63622]
[1728641990254,10.77,142.5,142.49,0.12502]
[1728641991354,14.281,142.5,142.49,0.12502]
[1728641991952,15.6447,142.5,142.49,0.12502]
[1728641994543,1.3637,142.5,142.49,3.63622]
[1728641994751,12.1337,142.5,142.49,0.12502]
[1728641996857,15.6447,142.5,142.49,0.12502]
[1728641997254,1.3637,142.5,142.49,3.63622]
[1728641999457,1.3104,142.55,142.49,0.12502]
[1728641999662,10.77,142.53,142.49,0.12502]
[1728642000050,10.77,142.53,142.51,3.5106]
[1728642000255,10.77,142.52,142.51,3.5106]
[1728642001054,14.2805,142.52,142.5,3.5109]
[1728642001255,10.77,142.51,142.5,3.5109]
[1728642001752,10.77,142.51,142.49,0.12502]
[1728642001964,10.77,142.5,142.49,0.12502]
[1728642002973,14.281,142.5,142.49,0.12502]
[1728642005270,19.701,142.5,142.49,0.12502]
[1728642005567,10.77,142.44,142.43,0.12502]
[1728642005967,2.7096,142.49,142.43,0.12502]
[1728642006273,10.77,142.47,142.43,0.12502]
[1728642006677,10.77,142.47,142.44,3.5124]
[1728642006874,10.77,142.47,142.43,0.12502]
[1728642008078,10.77,142.47,142.44,3.5124]
[1728642008278,10.77,142.47,142.43,0.12502]
[1728642009182,10.77,142.45,142.44,3.5124]
[1728642010180,10.77,142.46,142.45,3.5122]
[1728642015284,2.7096,142.49,142.47,3.5117]
[1728642015485,2.7096,142.49,142.44,10.77]
[1728642015683,13.4796,142.49,142.44,10.77]
[1728642015882,12.0658,142.49,142.48,3.5115]
[1728642016189,1.2958,142.49,142.48,3.5115]
[1728642016379,12.0658,142.49,142.48,3.5115]
[1728642022895,1.3965,142.53,142.48,3.5115]
[1728642023192,10.77,142.49,142.48,3.5115]
[1728642024597,10.77,142.49,142.44,12.0667]
[1728642024791,10.77,142.48,142.44,1.2967]
[1728642025395,5.42,142.51,142.44,1.2967]
[1728642025396,10.77,142.46,142.44,1.2967]
[1728642025788,10.77,142.46,142.45,3.5122]
[1728642025989,5.42,142.51,142.44,1.2967]
[1728642026187,5.42,142.51,142.44,12.0667]
[1728642026188,10.77,142.49,142.44,12.0667]
[1728642026393,10.77,142.49,142.47,3.5116]
[1728642026594,10.77,142.48,142.44,1.2967]
[1728642026992,10.77,142.48,142.46,3.5118]
[1728642027487,10.77,142.48,142.45,3.5122]
[1728642027689,10.77,142.48,142.44,1.2967]
[1728642029098,3.5112,142.5,142.44,1.2967]
[1728642029099,10.77,142.49,142.47,3.5115]
[1728642033191,10.77,142.48,142.47,3.5115]
[1728642046509,10.77,142.48,142.46,3.5119]
[1728642047516,14.2819,142.47,142.44,3.5123]
[1728642047722,10.77,142.45,142.44,3.5123]
[1728642047912,10.77,142.45,142.43,0.12502]
[1728642048214,10.77,142.44,142.43,0.12502]
[1728642049414,14.2825,142.44,142.43,0.12502]
[1728642060922,10.77,142.44,142.43,3.63762]
[1728642062121,10.2127,142.46,142.43,3.63762]
[1728642062322,10.77,142.44,142.43,3.63762]
[1728642065327,3.5122,142.45,142.43,3.63762]
[1728642065521,10.77,142.44,142.43,3.63762]
[1728642066725,10.77,142.44,142.43,0.12502]
[1728642069529,3.5122,142.45,142.43,0.12502]
[1728642069724,10.77,142.44,142.43,3.63772]
[1728642069926,6.7006,142.46,142.43,0.12502]
[1728642070125,10.77,142.44,142.43,0.12502]
[1728642071624,14.2825,142.44,142.43,0.12502]
[1728642072229,6.7006,142.46,142.43,0.12502]
[1728642072430,10.77,142.44,142.43,0.12502]
[1728642073440,14.2825,142.44,142.43,0.12502]
[1728642075043,10.77,142.44,142.43,0.12502]
[1728642075735,14.2825,142.44,142.43,0.12502]
[1728642079940,3.50413688,142.49,142.43,0.12502]
[1728642080149,10.77,142.48,142.46,3.5118]
[1728642080439,3.5113,142.49,142.44,10.77]
[1728642080440,5.26,142.49,142.44,10.77]
[1728642080640,10.77,142.47,142.43,0.12502]
[1728642080833,10.77,142.47,142.46,3.512]
[1728642083741,3.5107,142.52,142.49,3.5112]
[1728642083941,10.77,142.5,142.45,10.77]
[1728642084439,5.26,142.51,142.49,3.511]
[1728642084642,10.77,142.5,142.43,2.82922]
[1728642084942,10.77,142.46,142.43,2.82922]
[1728642085138,10.77,142.46,142.45,3.5122]
[1728642089044,5.26,142.48,142.47,3.5117]
[1728642090748,10.77,142.49,142.47,3.5117]
[1728642091052,10.77,142.48,142.47,3.5117]
[1728642093651,10.77,142.49,142.47,3.5117]
[1728642094745,8.8908,142.51,142.49,3.5112]
[1728642094953,19.6608,142.51,142.49,3.5112]
[1728642095143,19.6608,142.51,142.46,10.77]
[1728642095346,19.6608,142.51,142.48,3.5114]
[1728642096251,10.77,142.5,142.48,3.5114]
[1728642097250,14.2811,142.5,142.48,3.5114]
[1728642097855,10.77,142.49,142.44,14.27353976]
[1728642098058,10.77,142.49,142.47,3.5116]
[1728642098557,14.2811,142.5,142.47,3.5116]
[1728642099456,14.2811,142.5,142.48,3.5115]
[1728642102249,10.77,142.5,142.48,3.5115]
[1728642102553,12.1213,142.53,142.48,10.77]
[1728642102856,17.5013,142.53,142.48,10.77]
[1728642104557,21.0116,142.53,142.5,3.5109]
[1728642108161,10.77,142.52,142.5,3.5109]
[1728642108363,14.2808,142.51,142.48,3.5114]
[1728642108566,10.77,142.49,142.44,10.77]
[1728642108760,10.77,142.49,142.45,5.38]
[1728642108958,10.77,142.49,142.47,3.5116]
[1728642110263,10.77,142.49,142.44,10.77]
[1728642110466,10.77,142.49,142.47,3.5116]
[1728642111962,10.77,142.48,142.47,3.5116]
[1728642116158,10.77,142.48,142.44,10.77]
[1728642116363,10.77,142.47,142.46,3.5119]
[1728642117567,10.77,142.48,142.47,3.5117]
[1728642120776,10.77,142.48,142.43,1.51322]
[1728642121067,14.2815,142.48,142.43,1.51322]
[1728642121373,14.2815,142.48,142.45,3.5121]
[1728642121572,10.77,142.48,142.43,12.28322]
[1728642121769,10.77,142.48,142.44,10.77]
[1728642122076,10.77,142.48,142.47,3.5117]
[1728642124175,5.26,142.49,142.48,3.5115]
[1728642124364,16.03,142.49,142.48,3.5115]
[1728642128681,16.03,142.49,142.47,3.5116]
[1728642129780,19.5413,142.49,142.47,3.5116]
[1728642130179,14.2813,142.49,142.47,3.5116]
[1728642130381,19.5413,142.49,142.47,3.5116]
[1728642131081,10.77,142.48,142.47,3.5116]
[1728642133870,10.77,142.48,142.46,3.5119]
[1728642134271,10.77,142.47,142.44,3.5124]
[1728642134483,10.77,142.45,142.43,0.12502]
[1728642134678,10.77,142.44,142.43,0.12502]
[1728642134878,1.4067,142.54,142.43,14.41436203]
[1728642135074,10.77,142.52,142.47,10.77]
[1728642135776,10.77,142.52,142.49,3.5111]
[1728642135983,10.77,142.52,142.47,10.77]
[1728642136484,16.03,142.52,142.5,3.511]
[1728642137583,10.77,142.52,142.5,3.511]
[1728642137886,16.03,142.52,142.5,3.511]
[1728642138086,5.26,142.52,142.49,10.77]
[1728642138383,6.6702,142.53,142.49,10.77]
[1728642138787,6.6702,142.53,142.5,3.5108]
[1728642140080,10.1805,142.53,142.5,3.5108]
[1728642140779,4.9205,142.53,142.5,3.5108]
[1728642140985,10.1805,142.53,142.5,3.5108]
[1728642141574,10.77,142.52,142.5,3.5108]
[1728642142884,19.66502,142.55,142.52,3.5104]
[1728642143475,3.5101,142.54,142.51,3.5107]
[1728642144787,16.15502,142.55,142.5,10.77]
[1728642145091,19.66492,142.55,142.52,3.5105]
[1728642145787,8.89492,142.55,142.52,3.5105]
[1728642146088,19.66492,142.55,142.52,3.5105]
[1728642146684,19.68492,142.55,142.52,3.5105]
[1728642146884,14.40492,142.55,142.52,3.5105]
[1728642147185,19.68492,142.55,142.52,3.5105]
[1728642148079,0.12502,142.55,142.52,10.77]
[1728642148280,0.12502,142.55,142.54,3.51]
[1728642149482,0.12502,142.55,142.53,3.5102]
[1728642151588,10.77,142.54,142.52,3.5104]
[1728642153991,14.28,142.54,142.51,3.5107]
[1728642154185,14.28,142.54,142.49,16.05]
[1728642154392,14.28,142.54,142.51,3.5106]
[1728642154694,3.5104,142.53,142.49,16.05]
[1728642155794,14.2801,142.54,142.51,3.5106]
[1728642156086,0.12502,142.55,142.48,5.28]
[1728642156087,10.77,142.53,142.48,5.28]
[1728642156294,14.2804,142.53,142.5,3.5108]
[1728642158387,14.2801,142.54,142.52,3.5105]
[1728642158991,14.2801,142.54,142.51,3.5107]
[1728642159789,10.77,142.54,142.5,10.77]
[1728642160394,10.77,142.54,142.49,10.77]
[1728642160595,14.2801,142.54,142.51,3.5106]
[1728642161189,14.2801,142.54,142.49,10.77]
[1728642161394,14.2801,142.54,142.52,3.5105]
[1728642163797,3.5101,142.54,142.52,3.5105]
[1728642165296,12.27332,142.55,142.48,5.28]
[1728642165497,3.5104,142.53,142.51,3.5107]
[1728642166500,14.2802,142.54,142.51,3.5107]
[1728642169504,3.5103,142.53,142.51,3.5107]
[1728642171207,17.55332,142.55,142.51,3.5107]
[1728642171404,3.5101,142.54,142.51,3.5107]
[1728642177809,1.50332,142.55,142.51,10.77]
[1728642178008,10.17322,142.55,142.51,10.77]
[1728642178399,10.17322,142.55,142.52,3.5105]
[1728642178600,10.17322,142.55,142.51,10.77]
[1728642178999,10.17322,142.55,142.53,3.5102]
[1728642180808,10.17322,142.55,142.51,10.77]
[1728642181013,10.17322,142.55,142.52,3.5104]
[1728642182314,5.28502,142.55,142.51,10.77]
[1728642182516,0.12502,142.55,142.54,3.51]
[1728642182815,0.12502,142.55,142.54,14.28]
[1728642183318,5.16,142.6,142.54,10.77]
[1728642183614,5.16,142.6,142.52,3.52748329]
[1728642183615,16.05502,142.61,142.57,10.77]
[1728642184109,10.89502,142.61,142.57,10.77]
[1728642184313,0.12502,142.61,142.59,3.5088]
[1728642187723,10.77,142.6,142.54,8.58952691]
[1728642187924,14.2786,142.6,142.57,3.5091]
[1728642188712,10.77,142.6,142.57,3.5091]
[1728642188915,14.2788,142.59,142.56,3.5094]
[1728642189220,10.77,142.58,142.53,15.93]
[1728642189421,14.2792,142.58,142.55,3.5096]
[1728642190721,0.12502,142.61,142.53,10.77]
[1728642190923,3.5089,142.59,142.56,3.5093]
[1728642191120,14.2789,142.59,142.56,3.5093]
[1728642193033,14.2792,142.58,142.55,3.5098]
[1728642193330,10.77,142.56,142.52,6.58]
[1728642193626,14.2796,142.56,142.53,3.5101]
[1728642193823,14.2796,142.56,142.52,6.58]
[1728642194214,10.77,142.56,142.54,3.51]
[1728642195534,10.77,142.55,142.49,1.42532]
[1728642195827,10.77,142.55,142.49,6.58532]
[1728642196134,10.77,142.54,142.52,3.5104]
[1728642196326,3.51,142.55,142.52,3.5104]
[1728642196526,14.28,142.55,142.52,3.5104]
[1728642198937,10.77,142.53,142.49,0.12502]
[1728642200230,14.2804,142.53,142.49,0.12502]
[1728642200640,19.4404,142.53,142.49,0.12502]
[1728642201329,19.4404,142.53,142.49,3.63612]
[1728642201633,14.281,142.5,142.49,0.12502]